bitfinex/quotes_SOLUSD_20250625
["timestamp","ask_amount","ask_price","bid_price","bid_amount"]
[1750849093334,5.55668732,145.84,145.8,88.7]
[1750849093538,5.55668732,145.84,145.8,94.25668732]
[1750849094503,12.41373295,145.84,145.8,94.25668732]
[1750849095616,5.55668732,145.85,145.81,5.55668732]
[1750849095831,31.1193105,145.87,145.81,94.25668732]
[1750849096019,5.1193105,145.87,145.84,5.55668732]
[1750849096222,5.55668732,145.87,145.85,6.04]
[1750849096433,12.41257652,145.86,145.85,6.04]
[1750849100444,17.52839738,145.86,145.85,6.04]
[1750849100746,12.41257652,145.86,145.85,6.04]
[1750849102327,31.06222538,145.86,145.85,6.04]
[1750849102526,36.17804624,145.86,145.85,6.04]
[1750849109335,17.52839738,145.86,145.85,6.04]
[1750849109842,17.52839738,145.86,145.79,6.04]
[1750849109843,18.64964886,145.82,145.79,6.04]
[1750849110035,5.55668732,145.8,145.79,6.04]
[1750849110351,31.55668732,145.8,145.79,6.04]
[1750849110927,50.20633618,145.8,145.79,6.04]
[1750849111144,55.32215704,145.8,145.79,6.04]
[1750849111859,18.64964886,145.79,145.74,6.04]
[1750849112055,23.76546972,145.79,145.74,6.04]
[1750849112358,5.55668732,145.75,145.74,6.04]
[1750849122949,5.55668732,145.76,145.74,6.04]
[1750849123151,5.55668732,145.75,145.74,6.04]
[1750849123348,5.55668732,145.75,145.74,94.74]
[1750849128955,5.55668732,145.75,145.74,6.04]
[1750849133653,12.41775078,145.75,145.74,6.04]
[1750849135562,10.41141169,145.75,145.74,6.04]
[1750849138160,55.06106055,145.75,145.74,6.04]
[1750849138360,6.86200507,145.73,145.69,6.04]
[1750849138562,3.55034823,145.7,145.69,6.04]
[1750849139261,29.55034823,145.7,145.69,6.04]
[1750849140269,31.5507043,145.7,145.69,6.04]
[1750849140772,38.41412228,145.7,145.69,6.04]
[1750849141266,31.5507043,145.7,145.69,6.04]
[1750849141564,5.5507043,145.7,145.69,6.04]
[1750849142159,5.5507043,145.71,145.69,6.04]
[1750849143067,5.5507043,145.71,145.69,12.90386449]
[1750849143272,31.5507043,145.72,145.69,12.90386449]
[1750849143580,35.79998276,145.77,145.69,12.90386449]
[1750849143748,5.5507043,145.73,145.69,107.15456879]
[1750849146375,6.86106346,145.75,145.69,107.15456879]
[1750849146583,5.5507043,145.73,145.69,107.15456879]
[1750849147781,6.86106346,145.75,145.69,107.15456879]
[1750849148077,5.5507043,145.73,145.69,107.15456879]
[1750849153480,5.5507043,145.76,145.72,5.5507043]
[1750849153775,5.5507043,145.76,145.72,94.2507043]
[1750849154485,5.5507043,145.76,145.73,6.86200507]
[1750849155073,5.5507043,145.77,145.73,6.86200507]
[1750849155773,5.5507043,145.77,145.73,12.41270937]
[1750849155987,7.89495249,145.83,145.76,5.5507043]
[1750849155988,31.24794927,145.83,145.76,5.5507043]
[1750849156284,5.5507043,145.8,145.77,6.04]
[1750849156455,5.5507043,145.79,145.77,6.04]
[1750849156780,5.5507043,145.8,145.77,12.90008497]
[1750849157283,5.5507043,145.8,145.77,6.04]
[1750849158577,5.5507043,145.81,145.77,18.45066192]
[1750849158752,31.5507043,145.82,145.77,107.15066192]
[1750849158953,31.5507043,145.82,145.77,18.45066192]
[1750849159157,5.5507043,145.81,145.77,18.45066192]
[1750849161586,5.5507043,145.82,145.77,18.45066192]
[1750849161780,5.11499953,145.83,145.8,5.5507043]
[1750849161982,5.11499953,145.85,145.81,5.5507043]
[1750849162180,5.5507043,145.85,145.81,5.5507043]
[1750849162382,5.5507043,145.85,145.82,6.85776985]
[1750849162585,5.11499953,145.86,145.83,6.04]
[1750849162877,10.66570383,145.87,145.83,11.5907043]
[1750849163073,5.5507043,145.86,145.83,6.04]
[1750849163280,10.66570383,145.86,145.83,6.04]
[1750849163979,5.5507043,145.86,145.83,6.04]
[1750849164398,10.66570383,145.86,145.83,6.04]
[1750849164690,5.5507043,145.86,145.83,6.04]
[1750849164987,32.85507573,145.88,145.83,12.89714833]
[1750849165193,5.5507043,145.87,145.83,12.89714833]
[1750849165493,5.5507043,145.86,145.83,12.89714833]
[1750849167092,5.5507043,145.87,145.83,18.44785263]
[1750849167470,26.0,145.89,145.83,107.14785263]
[1750849167698,5.5507043,145.89,145.84,5.5507043]
[1750849168694,5.5507043,145.89,145.85,6.85635927]
[1750849168992,5.5507043,145.88,145.84,101.10735304]
[1750849170097,5.5507043,145.88,145.84,95.55664874]
[1750849170289,5.5507043,145.88,145.84,101.10735304]
[1750849170894,5.5507043,145.88,145.84,95.55664874]
[1750849171395,5.5507043,145.88,145.84,101.10735304]
[1750849172081,5.5507043,145.89,145.85,5.5507043]
[1750849173003,5.5507043,145.89,145.84,95.55664874]
[1750849173004,12.40426644,145.91,145.87,6.8554192]
[1750849173177,12.40426644,145.91,145.87,95.5554192]
[1750849173577,6.85324742,145.92,145.87,95.5554192]
[1750849173876,5.5507043,145.92,145.88,5.5507043]
[1750849174077,5.5507043,145.92,145.89,6.04]
[1750849176284,32.852734,145.93,145.89,12.89447362]
[1750849176488,5.5507043,145.92,145.89,12.89447362]
[1750849177488,5.5507043,145.94,145.9,5.5507043]
[1750849177690,5.5507043,145.93,145.89,39.6307043]
[1750849177886,5.5507043,145.93,145.89,40.93446666]
[1750849178085,6.8511921,145.96,145.89,40.93446666]
[1750849178397,5.5507043,145.94,145.9,5.5507043]
[1750849179181,5.5507043,145.94,145.91,6.85353985]
[1750849180806,5.5507043,145.94,145.9,12.40454437]
[1750849181106,5.5507043,145.94,145.9,6.85384007]
[1750849182307,6.85172117,145.95,145.9,12.40454437]
[1750849182484,5.5507043,145.94,145.9,12.40454437]
[1750849182684,5.5507043,145.94,145.9,6.85384007]
[1750849183089,5.5507043,145.93,145.89,46.4849726]
[1750849185811,5.5507043,145.91,145.89,34.08]
[1750849186011,5.5507043,145.91,145.89,94.74]
[1750849186209,5.5507043,145.92,145.89,94.74]
[1750849187313,6.85166152,145.95,145.89,107.14509939]
[1750849187607,5.5507043,145.93,145.89,135.16509939]
[1750849187807,5.5507043,145.92,145.89,122.76]
[1750849189591,6.85287673,145.93,145.89,122.76]
[1750849189794,5.5507043,145.91,145.89,122.76]
[1750849190000,5.5507043,145.91,145.89,94.74]
[1750849190417,12.40424601,145.91,145.89,94.74]
[1750849191011,5.5507043,145.9,145.89,6.04]
[1750849192121,18.64964886,145.94,145.89,6.04]
[1750849192310,5.5507043,145.9,145.89,6.04]
[1750849193012,5.5507043,145.91,145.89,6.04]
[1750849195818,5.5507043,145.9,145.89,6.04]
[1750849197120,5.5507043,145.91,145.89,6.04]
[1750849197801,6.85334414,145.92,145.89,6.04]
[1750849198007,5.5507043,145.91,145.89,6.04]
[1750849201127,31.5507043,145.9,145.89,6.04]
[1750849201311,55.29109864,145.9,145.89,6.04]
[1750849201618,62.14510823,145.9,145.89,6.04]
[1750849202422,43.49545937,145.9,145.89,6.04]
[1750849202805,36.15322933,145.9,145.89,6.04]
[1750849203009,26.0,145.87,145.84,6.02]
[1750849203216,5.5507043,145.85,145.84,6.02]
[1750849203929,12.40706357,145.85,145.84,6.02]
[1750849204715,23.05843307,145.85,145.79,6.02]
[1750849204905,5.5507043,145.81,145.79,6.02]
[1750849205227,5.5507043,145.83,145.79,11.5707043]
[1750849205427,5.10569458,145.84,145.79,6.02]
[1750849205629,5.5507043,145.83,145.79,6.02]
[1750849205814,5.5507043,145.83,145.79,12.87877071]
[1750849208029,5.10246864,145.86,145.8,5.5507043]
[1750849208211,5.5507043,145.85,145.8,33.5707043]
[1750849208730,5.5507043,145.84,145.8,33.5707043]
[1750849209303,5.5507043,145.85,145.81,6.85824017]
[1750849210639,32.85568728,145.87,145.81,12.40894447]
[1750849210844,5.5507043,145.85,145.81,12.40894447]
[1750849211021,5.5507043,145.85,145.81,6.85824017]
[1750849211210,5.5507043,145.85,145.8,34.87862902]
[1750849211211,5.5507043,145.84,145.8,34.87862902]
[1750849211605,5.5507043,145.84,145.8,40.42933332]
[1750849214646,6.8558892,145.86,145.8,129.12933332]
[1750849214819,5.5507043,145.86,145.81,5.5507043]
[1750849215013,5.5507043,145.85,145.81,5.5507043]
[1750849216143,5.5507043,145.85,145.82,6.85776985]
[1750849216314,5.5507043,145.85,145.82,95.55776985]
[1750849217241,6.85548247,145.87,145.82,95.55776985]
[1750849217415,5.5507043,145.85,145.82,95.55776985]
[1750849219314,6.85502033,145.88,145.82,95.55776985]
[1750849219515,5.5507043,145.86,145.82,95.55776985]
[1750849219739,5.5507043,145.85,145.82,123.59776985]
[1750849219948,6.85502033,145.88,145.82,129.14847415]
[1750849220110,5.5507043,145.86,145.82,129.14847415]
[1750849221721,5.5507043,145.86,145.82,123.59776985]
[1750849224353,5.5507043,145.85,145.82,123.59776985]
[1750849224520,5.5507043,145.85,145.82,116.74]
[1750849224826,5.5507043,145.85,145.82,123.59768696]
[1750849225234,5.5507043,145.85,145.82,95.55768696]
[1750849227112,5.5507043,145.83,145.82,88.7]
[1750849229338,5.5507043,145.85,145.82,88.7]
[1750849229633,5.5507043,145.85,145.82,116.74]
[1750849230140,5.5507043,145.85,145.82,123.59776985]
[1750849231819,5.5507043,145.86,145.82,123.59776985]
[1750849234562,12.4066235,145.86,145.82,123.59776985]
[1750849235853,12.40708936,145.85,145.82,116.74]
[1750849236028,12.40708936,145.85,145.82,88.7]
[1750849236547,5.5507043,145.85,145.82,88.7]
[1750849236752,12.40622428,145.87,145.82,101.10843955]
[1750849237236,6.85400959,145.9,145.84,5.5507043]
[1750849237437,6.85400959,145.9,145.85,6.02]
[1750849237438,10.66325591,145.89,145.85,6.02]
[1750849237642,5.11255161,145.88,145.85,6.02]
[1750849238135,12.40523221,145.89,145.85,6.02]
[1750849238525,5.11462801,145.88,145.85,46.44699776]
[1750849238828,32.85368636,145.91,145.87,5.5507043]
[1750849238829,5.11436793,145.9,145.87,5.5507043]
[1750849239034,12.40439066,145.91,145.87,88.7]
[1750849239344,5.11406245,145.9,145.87,122.2707043]
[1750849239652,5.5507043,145.92,145.87,122.2707043]
[1750849239958,31.5507043,145.93,145.88,5.5507043]
[1750849240136,5.11275534,145.92,145.89,40.4251837]
[1750849240448,5.5507043,145.93,145.89,40.4251837]
[1750849240624,5.11502352,145.92,145.89,40.4251837]
[1750849240949,5.5507043,145.93,145.89,40.4251837]
[1750849241148,5.11503143,145.92,145.89,34.8744794]
[1750849241350,5.11468414,145.92,145.89,34.8744794]
[1750849241648,5.11468414,145.92,145.89,28.02]
[1750849241943,12.40335424,145.93,145.89,123.57444751]
[1750849242533,5.11459851,145.92,145.89,123.57444751]
[1750849242948,6.85213101,145.94,145.89,123.57444751]
[1750849243129,10.66525395,145.93,145.89,116.72]
[1750849243333,5.5507043,145.93,145.89,116.72]
[1750849243526,10.66531902,145.92,145.89,116.72]
[1750849243840,5.11448295,145.95,145.89,88.7]
[1750849243841,5.5507043,145.91,145.89,88.7]
[1750849245145,5.5507043,145.92,145.89,88.7]
[1750849246950,5.11212228,145.94,145.89,122.2707043]
[1750849247146,5.5507043,145.94,145.89,122.2707043]
[1750849248844,10.6592325,145.94,145.89,122.2707043]
[1750849249023,5.5507043,145.94,145.89,122.2707043]
[1750849249224,10.6592325,145.94,145.89,122.2707043]
[1750849249430,5.5507043,145.94,145.89,122.2707043]
[1750849249630,10.6592325,145.94,145.89,122.2707043]
[1750849249947,5.1085282,145.95,145.89,122.2707043]
[1750849250155,5.1085282,145.94,145.89,122.2707043]
[1750849250329,5.5507043,145.94,145.89,122.2707043]
[1750849250534,10.6592325,145.94,145.89,122.2707043]
[1750849250734,5.5507043,145.94,145.89,122.2707043]
[1750849251725,5.5507043,145.94,145.9,5.5507043]
[1750849251926,5.5507043,145.94,145.91,6.02]
[1750849252141,5.5507043,145.94,145.91,94.72]
[1750849252448,5.10583152,145.95,145.91,94.72]
[1750849252752,5.5507043,145.94,145.91,94.72]
[1750849252953,5.5507043,145.94,145.91,122.74]
[1750849255354,5.5507043,145.95,145.91,128.2907043]
[1750849255832,5.5507043,145.95,145.91,122.74]
[1750849256129,5.5507043,145.95,145.91,128.2907043]
[1750849259553,5.5507043,145.95,145.91,122.74]
[1750849260339,5.1022134,145.96,145.91,122.74]
[1750849260653,5.5507043,145.95,145.91,122.74]
[1750849261033,5.1022134,145.96,145.91,128.2907043]
[1750849261034,5.5507043,145.96,145.91,128.2907043]
[1750849261339,5.5507043,145.96,145.91,122.74]
[1750849261547,5.5507043,145.95,145.91,128.2907043]
[1750849262356,18.64964886,146.0,145.93,5.5507043]
[1750849262531,5.5507043,145.97,145.93,28.0]
[1750849262730,5.5507043,145.97,145.93,116.7]
[1750849262952,5.5507043,145.96,145.93,116.7]
[1750849263142,5.5507043,145.97,145.93,116.7]
[1750849264866,5.5507043,145.97,145.93,122.2507043]
[1750849265666,5.5507043,145.98,145.94,5.5507043]
[1750849265841,5.4344869,146.03,145.95,5.5507043]
[1750849265842,5.5507043,146.0,145.95,5.5507043]
[1750849266039,5.09279165,146.01,145.97,5.5507043]
[1750849266237,5.09279165,146.03,145.98,6.02]
[1750849266436,5.5507043,146.01,145.98,6.02]
[1750849267446,5.09279165,146.02,145.98,6.02]
[1750849267642,10.64349595,146.02,145.98,6.02]
[1750849267961,5.5507043,146.01,145.98,6.02]
[1750849269160,5.5507043,146.02,145.98,6.02]
[1750849270257,5.5507043,146.01,145.98,6.02]
[1750849271961,5.5507043,145.99,145.98,6.02]
[1750849272140,31.5507043,145.99,145.98,6.02]
[1750849272460,50.20035316,145.99,145.98,6.02]
[1750849272758,18.64964886,145.98,145.93,6.02]
[1750849272944,5.5507043,145.94,145.93,6.02]
[1750849273138,18.64964886,145.98,145.93,6.02]
[1750849273139,5.5507043,145.95,145.93,6.02]
[1750849274151,5.5507043,145.94,145.93,6.02]
[1750849277974,5.5507043,145.94,145.88,6.02]
[1750849277975,18.64964886,145.93,145.88,6.02]
[1750849278157,5.5507043,145.89,145.88,6.02]
[1750849279048,26.0,145.93,145.88,6.02]
[1750849279251,5.5507043,145.9,145.88,6.02]
[1750849279473,5.5507043,145.89,145.88,6.02]
[1750849284976,5.5507043,145.9,145.88,6.02]
[1750849285352,5.5507043,145.89,145.88,6.02]
[1750849286779,5.5507043,145.9,145.88,6.02]
[1750849288792,5.5507043,145.89,145.88,6.02]
[1750849289284,18.64964886,145.9,145.88,6.02]
[1750849289495,5.5507043,145.89,145.88,6.02]
[1750849290263,5.5507043,145.9,145.88,6.02]
[1750849290976,5.5507043,145.91,145.88,6.02]
[1750849291184,5.5507043,145.89,145.88,6.02]
[1750849296961,6.2306,145.91,145.88,6.02]
[1750849297159,5.5507043,145.89,145.88,6.02]
[1750849297364,24.20035316,145.89,145.88,6.02]
[1750849297576,18.64964886,145.88,145.83,94.72]
[1750849297882,5.5507043,145.84,145.83,6.02]
[1750849298385,5.5507043,145.85,145.83,6.02]
[1750849298789,5.5507043,145.84,145.83,6.02]
[1750849303465,5.5507043,145.85,145.83,6.02]
[1750849304594,31.5507043,145.87,145.83,6.02]
[1750849304768,5.5507043,145.87,145.83,6.02]
[1750849304970,26.0,145.9,145.84,5.5507043]
[1750849305173,5.5507043,145.88,145.84,94.2507043]
[1750849305598,5.5507043,145.88,145.84,88.7]
[1750849306296,5.5507043,145.87,145.84,88.7]
[1750849307695,5.5507043,145.85,145.84,88.7]
[1750849307897,5.5507043,145.85,145.83,6.02]
[1750849308094,5.5507043,145.84,145.83,6.02]
[1750849308791,26.0,145.86,145.83,6.02]
[1750849309097,5.5507043,145.84,145.83,6.02]
[1750849311381,5.5507043,145.85,145.83,6.02]
[1750849313284,5.5507043,145.84,145.83,6.02]
[1750849315809,31.5507043,145.84,145.83,6.02]
[1750849316708,55.75105746,145.84,145.83,6.02]
[1750849316911,55.75105746,145.84,145.78,94.72]
[1750849317084,5.5507043,145.8,145.78,94.72]
[1750849318294,5.5507043,145.79,145.78,94.72]
[1750849318482,5.5507043,145.79,145.78,6.02]
[1750849320014,18.64964886,145.83,145.78,6.02]
[1750849320215,5.5507043,145.8,145.78,6.02]
[1750849321120,18.64964886,145.85,145.76,0.68605927]
[1750849321334,26.0,145.82,145.78,6.04]
[1750849321500,5.5507043,145.79,145.78,6.04]
[1750849322027,5.5507043,145.81,145.78,6.04]
[1750849322324,31.5507043,145.82,145.78,6.04]
[1750849322524,5.5507043,145.81,145.78,6.04]
[1750849323423,5.5507043,145.8,145.78,6.04]
[1750849323605,5.5507043,145.79,145.78,6.04]
[1750849324503,26.0,145.84,145.78,6.04]
[1750849324707,5.5507043,145.81,145.78,6.04]
[1750849324905,26.0,145.84,145.78,6.04]
[1750849325109,5.5507043,145.81,145.78,6.04]
[1750849325820,5.5507043,145.83,145.79,5.5507043]
[1750849326001,1.504,145.87,145.8,5.5507043]
[1750849326002,5.5507043,145.84,145.8,5.5507043]
[1750849326391,5.5507043,145.83,145.78,11.5907043]
[1750849326592,5.5507043,145.82,145.78,11.5907043]
[1750849327207,5.5507043,145.83,145.78,11.5907043]
[1750849328516,5.5507043,145.81,145.76,6.1665]
[1750849328722,5.5507043,145.8,145.79,6.04]
[1750849329516,5.5507043,145.8,145.75,7.1509043]
[1750849329701,5.5507043,145.79,145.76,6.04]
[1750849331505,5.5507043,145.78,145.76,6.04]
[1750849331802,5.5507043,145.8,145.76,6.04]
[1750849332033,5.5507043,145.8,145.76,11.5907043]
[1750849333231,5.5507043,145.81,145.76,11.5907043]
[1750849333929,5.5507043,145.8,145.76,11.5907043]
[1750849334129,44.64964886,145.83,145.77,5.5507043]
[1750849334328,5.5507043,145.83,145.79,5.5507043]
[1750849334534,5.5507043,145.84,145.8,5.5507043]
[1750849334736,5.5507043,145.84,145.79,5.5507043]
[1750849336407,18.64964886,145.79,145.75,6.04]
[1750849336624,29.75105746,145.76,145.75,6.04]
[1750849337137,29.75105746,145.76,145.68,7.1793043]
[1750849337318,5.5507043,145.72,145.71,6.04]
[1750849337935,5.5507043,145.73,145.71,6.04]
[1750849338239,18.64964886,145.76,145.71,6.04]
[1750849338419,5.5507043,145.72,145.71,6.04]
[1750849338824,5.5507043,145.72,145.68,1.6286]
[1750849339035,5.5507043,145.69,145.66,6.1]
[1750849339230,18.64964886,145.7,145.66,6.1]
[1750849339540,5.5507043,145.67,145.66,6.1]
[1750849340615,18.64964886,145.7,145.66,6.1]
[1750849340829,5.5507043,145.71,145.67,5.5507043]
[1750849341039,5.5507043,145.71,145.66,11.6507043]
[1750849341242,5.5507043,145.7,145.66,11.6507043]
[1750849342017,26.0,145.72,145.66,11.6507043]
[1750849342018,5.5507043,145.67,145.66,6.1]
[1750849343231,18.64964886,145.71,145.66,6.1]
[1750849343418,5.5507043,145.68,145.66,6.1]
[1750849344240,26.0,145.63,145.6,6.1]
[1750849344418,5.5507043,145.61,145.6,6.1]
[1750849346343,9.2597333,145.61,145.6,6.1]
[1750849346937,9.2597333,145.62,145.6,6.1]
[1750849347161,9.2597333,145.61,145.6,6.1]
[1750849350455,26.0,145.63,145.6,6.1]
[1750849350654,9.2597333,145.61,145.6,6.1]
[1750849352151,9.2597333,145.62,145.6,6.1]
[1750849352350,8.0477,145.69,145.61,9.2597333]
[1750849352534,9.2597333,145.68,145.63,9.2597333]
[1750849352741,18.64964886,145.7,145.65,9.2597333]
[1750849352947,9.2597333,145.7,145.66,6.12]
[1750849353148,35.2597333,145.7,145.66,6.12]
[1750849354157,9.2597333,145.7,145.66,6.12]
[1750849355056,9.2597333,145.69,145.66,6.12]
[1750849357135,9.2597333,145.68,145.66,6.12]
[1750849357338,9.2597333,145.67,145.66,6.12]
[1750849359762,44.64964886,145.68,145.66,6.12]
[1750849359968,27.90938216,145.67,145.66,6.12]
[1750849364668,18.64964886,145.67,145.66,6.12]
[1750849364844,9.2597333,145.67,145.66,6.12]
[1750849368965,27.90938216,145.67,145.66,6.12]
[1750849369144,18.64964886,145.66,145.61,6.08]
[1750849369344,9.2597333,145.62,145.61,6.08]
[1750849369875,26.0,145.68,145.61,6.08]
[1750849369876,9.2597333,145.63,145.61,6.08]
[1750849371669,9.2597333,145.62,145.61,6.08]
[1750849373570,9.2597333,145.65,145.61,6.08]
[1750849374068,35.2597333,145.66,145.61,15.3397333]
[1750849374370,9.2597333,145.68,145.63,9.2597333]
[1750849377278,35.2597333,145.69,145.65,9.2597333]
[1750849377479,35.2597333,145.69,145.62,8.0837]
[1750849377683,9.2597333,145.72,145.67,9.2597333]
[1750849377861,9.2597333,145.73,145.69,9.2597333]
[1750849378180,35.2597333,145.73,145.7,6.08]
[1750849378672,9.2597333,145.73,145.7,6.08]
[1750849379152,35.2597333,145.73,145.7,6.08]
[1750849379851,9.2597333,145.73,145.7,6.08]
[1750849380165,35.2597333,145.74,145.7,6.08]
[1750849380352,26.0,145.74,145.7,15.3397333]
[1750849381165,26.0,145.74,145.71,9.2597333]
[1750849381363,26.0,145.74,145.7,15.3397333]
[1750849381770,35.2597333,145.74,145.7,15.3397333]
[1750849383352,26.0,145.74,145.7,15.3397333]
[1750849383688,12.83531516,145.76,145.71,9.2597333]
[1750849383890,9.2597333,145.76,145.71,9.2597333]
[1750849384706,31.11082198,145.77,145.71,9.2597333]
[1750849384707,26.0,145.77,145.73,9.2597333]
[1750849384878,35.2597333,145.77,145.73,9.2597333]
[1750849385982,35.2597333,145.77,145.72,9.2597333]
[1750849387865,35.2597333,145.77,145.73,9.2597333]
[1750849388759,9.2597333,145.79,145.75,9.2597333]
[1750849388985,9.2597333,145.79,145.76,6.08]
[1750849389366,9.2597333,145.77,145.76,6.08]
[1750849389860,9.2597333,145.78,145.76,6.08]
[1750849390385,5.54309504,145.78,145.76,6.08]
[1750849390682,26.0,145.8,145.76,6.08]
[1750849390683,5.54309504,145.77,145.76,6.08]
[1750849392990,24.1927439,145.77,145.76,6.08]
[1750849393167,26.0,145.74,145.71,6.08]
[1750849393368,5.54309504,145.72,145.71,6.08]
[1750849394893,26.0,145.73,145.71,6.08]
[1750849395079,5.54309504,145.72,145.71,6.08]
[1750849399170,50.1927439,145.72,145.71,6.08]
[1750849399471,24.1927439,145.72,145.71,6.08]
[1750849400796,5.54309504,145.72,145.71,6.08]
[1750849404283,26.0,145.73,145.71,6.08]
[1750849404499,5.54309504,145.72,145.71,6.08]
[1750849404796,31.54309504,145.72,145.71,6.08]
[1750849411012,30.99989401,145.72,145.71,6.08]
[1750849411399,26.0,145.72,145.71,6.08]
[1750849411606,31.54309504,145.72,145.71,6.08]
[1750849412593,50.1927439,145.72,145.71,6.08]
[1750849417291,55.30446536,145.72,145.71,6.08]
[1750849421697,55.30446536,145.72,116.53,1.86781076]
[1750849421698,18.64964886,145.67,145.58,1.564]
[1750849421915,18.64964886,145.67,145.62,6.08]
[1750849421916,5.54309504,145.63,145.62,6.08]
[1750849425100,5.54309504,145.64,145.62,6.08]
[1750849425506,17.04080774,145.72,145.62,6.08]
[1750849425811,5.54309504,145.66,145.62,6.08]
[1750849426616,5.54309504,145.65,145.62,6.08]
[1750849426810,5.54309504,145.64,145.62,6.08]
[1750849428324,31.54309504,145.65,145.62,6.08]
[1750849428822,5.54309504,145.64,145.62,6.08]
[1750849429225,5.54309504,145.63,145.62,6.08]
[1750849432726,24.1927439,145.63,145.62,6.08]
[1750849433515,44.64964886,145.63,145.62,6.08]
[1750849433710,50.1927439,145.63,145.62,6.08]
[1750849437718,31.54309504,145.63,145.62,6.08]
[1750849441226,50.1927439,145.63,145.62,6.08]
[1750849443142,24.1927439,145.63,145.62,6.08]
[1750849443342,26.0,145.59,145.57,6.1]
[1750849443635,24.1927439,145.58,145.57,6.1]
[1750849446935,5.54309504,145.58,145.57,6.1]
[1750849447116,26.0,145.58,145.57,6.1]
[1750849455547,5.54309504,145.59,145.57,6.1]
[1750849456741,31.54309504,145.6,145.57,6.1]
[1750849462949,5.54309504,145.61,145.57,6.1]
[1750849463131,5.54309504,145.61,145.57,11.64309504]
[1750849465461,44.64964886,145.63,145.57,11.64309504]
[1750849465638,26.0,145.63,145.6,5.54309504]
[1750849466250,31.54309504,145.63,145.59,5.54309504]
[1750849466559,5.54309504,145.61,145.57,13.23889504]
[1750849467158,5.54309504,145.62,145.57,13.23889504]
[1750849468956,5.54309504,145.62,145.58,5.54309504]
[1750849470639,31.54309504,145.63,145.59,5.54309504]
[1750849472269,5.12225956,145.64,145.62,5.54309504]
[1750849472453,5.54309504,145.69,145.63,11.64309504]
[1750849472640,31.54309504,145.7,145.66,5.54309504]
[1750849472843,36.6653546,145.7,145.66,5.54309504]
[1750849473043,31.54309504,145.7,145.66,5.54309504]
[1750849473244,36.6653546,145.7,145.66,5.54309504]
[1750849473960,31.12225956,145.7,145.66,5.54309504]
[1750849474165,18.64964886,145.71,145.68,5.54309504]
[1750849474346,26.0,145.72,145.69,11.64309504]
[1750849474544,7.7742,145.76,145.71,5.54309504]
[1750849474767,5.54309504,145.76,145.71,5.54309504]
[1750849475067,9.118783,145.77,145.7,28.16]
[1750849475267,8.1153,145.8,145.73,5.54309504]
[1750849475268,5.54309504,145.78,145.73,5.54309504]
[1750849475566,26.0,145.75,145.73,5.54309504]
[1750849476071,18.64964886,145.77,145.73,5.54309504]
[1750849476267,8.1153,145.8,145.73,5.54309504]
[1750849476446,18.64964886,145.77,145.73,5.54309504]
[1750849476844,44.64964886,145.77,145.73,5.54309504]
[1750849477266,44.64964886,145.77,145.74,5.54309504]
[1750849477441,44.64964886,145.77,145.75,6.1]
[1750849478273,18.64964886,145.8,145.76,5.54309504]
[1750849478446,26.0,145.79,145.76,5.54309504]
[1750849480956,26.0,145.79,145.75,6.1]
[1750849481157,26.0,145.79,145.75,11.64309504]
[1750849481651,26.0,145.79,145.76,5.54309504]
[1750849483053,26.0,145.79,145.77,5.54309504]
[1750849484072,24.1927439,145.78,145.76,6.1]
[1750849484276,5.54309504,145.77,145.76,6.1]
[1750849484479,24.1927439,145.78,145.76,6.1]
[1750849486492,5.54309504,145.77,145.76,6.1]
[1750849488185,5.54309504,145.77,145.73,5.54309504]
[1750849488392,5.54309504,145.77,145.76,6.1]
[1750849489091,24.1927439,145.78,145.76,6.1]
[1750849489400,18.64964886,145.79,145.76,11.64309504]
[1750849489568,5.54309504,145.81,145.76,11.64309504]
[1750849489766,26.0,145.8,145.77,5.54309504]
[1750849491407,31.54309504,145.8,145.76,11.64309504]
[1750849492903,26.0,145.8,145.76,5.54309504]
[1750849493070,26.0,145.8,145.77,6.06]
[1750849494705,26.0,145.8,145.78,5.54309504]
[1750849494998,18.64964886,145.82,145.78,5.54309504]
[1750849495227,44.64964886,145.82,145.79,5.54309504]
[1750849495580,50.1927439,145.82,145.78,5.54309504]